bitfinex-derivatives/quotes_SOLF0:USTF0_20250419
["timestamp","ask_amount","ask_price","bid_price","bid_amount"]
[1745043808325,0.05545376,138.12,138.09,0.05355817]
[1745043808626,4.81961034,138.11,138.09,0.05355817]
[1745043808826,0.05545376,138.12,138.09,0.05355817]
[1745043809021,4.81961034,138.11,138.09,0.05355817]
[1745043809317,0.05545376,138.12,138.09,0.05355817]
[1745043809517,4.81938688,138.11,138.09,0.05355817]
[1745043809718,0.05545376,138.12,138.09,0.05355817]
[1745043810526,4.81890473,138.11,138.09,0.05355817]
[1745043810728,0.05545376,138.12,138.09,0.05355817]
[1745043810926,4.81891211,138.11,138.09,0.05355817]
[1745043811124,0.05545376,138.12,138.09,0.05355817]
[1745043811428,4.81885534,138.11,138.09,0.05355817]
[1745043811628,0.05545376,138.12,138.09,0.05355817]
[1745043811829,4.81897377,138.11,138.09,0.05355817]
[1745043812027,0.05545376,138.12,138.09,0.05355817]
[1745043812228,4.81865821,138.11,138.09,0.05355817]
[1745043812428,0.05545376,138.12,138.09,0.05355817]
[1745043812629,4.81866297,138.11,138.09,0.05355817]
[1745043812928,0.05545376,138.12,138.09,0.05355817]
[1745043813122,4.81849388,138.11,138.09,0.05355817]
[1745043813321,0.05545376,138.12,138.09,0.05355817]
[1745043813623,4.81833037,138.11,138.09,0.05355817]
[1745043813823,0.05545376,138.12,138.09,0.05355817]
[1745043814026,4.81828409,138.11,138.09,0.05355817]
[1745043814222,0.05545376,138.12,138.09,0.05355817]
[1745043814427,4.81811153,138.11,138.09,0.05355817]
[1745043814731,0.05545376,138.12,138.09,0.05355817]
[1745043814930,4.81816507,138.11,138.09,0.05355817]
[1745043815230,0.05545376,138.12,138.09,0.05355817]
[1745043815430,4.81801314,138.11,138.09,0.05355817]
[1745043815631,0.05545376,138.12,138.09,0.05355817]
[1745043815831,4.817999,138.11,138.09,0.05355817]
[1745043816032,0.05545376,138.12,138.09,0.05355817]
[1745043816231,4.81784388,138.11,138.09,0.05355817]
[1745043816427,0.05545376,138.12,138.09,0.05355817]
[1745043816730,4.81764084,138.11,138.09,0.05355817]
[1745043816930,0.05545376,138.12,138.09,0.05355817]
[1745043817133,4.81760145,138.11,138.09,0.05355817]
[1745043817333,0.05545376,138.12,138.09,0.05355817]
[1745043817532,4.81776104,138.11,138.09,0.05355817]
[1745043817735,0.05545376,138.12,138.09,0.05355817]
[1745043817936,4.81797442,138.11,138.09,0.05355817]
[1745043818235,0.05545376,138.12,138.09,0.05355817]
[1745043818430,4.8184084,138.11,138.09,0.05355817]
[1745043818628,0.05545376,138.12,138.09,0.05355817]
[1745043818833,4.8184084,138.11,138.09,0.05355817]
[1745043819031,0.05545376,138.12,138.09,0.05355817]
[1745043819227,4.8186051,138.11,138.09,0.05355817]
[1745043819430,0.05545376,138.12,138.09,0.05355817]
[1745043819736,4.81872521,138.11,138.09,0.05355817]
[1745043819935,0.05545376,138.12,138.09,0.05355817]
[1745043820135,4.81873528,138.11,138.09,0.05355817]
[1745043820335,0.05545376,138.12,138.09,0.05355817]
[1745043849955,0.05545376,138.12,138.09,1.38319994]
[1745043850156,6.5156,138.16,138.09,1.38319994]
[1745043850357,4.82381701,138.15,138.09,1.32964177]
[1745043850553,6.5156,138.16,138.09,1.32964177]
[1745043851056,6.5156,138.16,138.08,25.48]
[1745043851260,6.5156,138.16,138.1,1.32954197]
[1745043851456,0.0512088,138.13,138.11,25.48]
[1745043851658,0.0512088,138.13,138.12,25.48]
[1745043852259,1.854,138.2,138.12,25.48]
[1745043852458,4.82215777,138.19,138.12,25.48]
[1745043852758,4.82215777,138.18,138.12,27.4168]
[1745043853057,1.854,138.2,138.12,27.4168]
[1745043853360,0.04718433,138.16,138.14,0.04727193]
[1745043853559,0.04718433,138.16,138.15,25.48]
[1745043853755,6.5125,138.22,138.15,25.48]
[1745043853952,4.8216282,138.21,138.15,25.48]
[1745043854157,4.8216282,138.2,138.15,25.48]
[1745043854351,6.5128,138.22,138.15,25.48]
[1745043854556,4.81937857,138.21,138.15,25.48]
[1745043854757,4.81937857,138.2,138.15,25.48]
[1745043854959,0.05227586,138.19,138.15,25.48]
[1745043855157,0.05227586,138.19,138.16,0.05166897]
[1745043868174,6.5117,138.24,138.16,1.3806206]
[1745043868365,6.5117,138.24,138.17,2.0153]
[1745043868569,6.5117,138.24,138.18,25.46]
[1745043869072,11.3707,138.27,138.18,25.46]
[1745043869272,4.80386553,138.26,138.2,0.05123841]
[1745043869473,11.3707,138.27,138.21,25.46]
[1745043869674,6.5113,138.25,138.21,25.46]
[1745043870174,11.3707,138.27,138.21,25.46]
[1745043870175,6.5116,138.24,138.21,25.46]
[1745043870876,6.5112,138.25,138.21,25.46]
[1745043871679,6.5108,138.26,138.21,25.46]
[1745043871977,11.3707,138.27,138.21,25.46]
[1745043872175,4.80104511,138.26,138.21,25.46]
[1745043872376,11.3707,138.27,138.21,25.46]
[1745043874476,17.8809,138.27,138.21,25.46]
[1745043874871,0.05103176,138.25,138.21,25.46]
[1745043876471,6.5116,138.24,138.21,25.46]
[1745043877777,6.5121,138.23,138.21,25.46]
[1745043878377,6.5117,138.24,138.21,25.46]
[1745043878578,0.05103176,138.25,138.21,25.46]
[1745043880879,0.05103176,138.25,138.2,0.05123841]
[1745043881078,0.05103176,138.25,138.21,25.46]
[1745043881778,0.05103176,138.25,138.21,27.4058]
[1745043882877,0.05103176,138.25,138.21,29.3154]
[1745043883077,10.0,138.3,138.22,574.8292]
[1745043884380,0.05458407,138.27,138.25,0.05411704]
[1745043884579,0.05458407,138.27,138.26,25.44]
[1745043889984,0.05458407,138.27,138.25,0.05411704]
[1745043901195,4.82221686,138.26,138.25,0.05411704]
[1745043902898,4.82338585,138.26,138.25,0.05411704]
[1745043903592,0.05458407,138.27,138.25,0.05411704]
[1745043917405,4.82872821,138.26,138.25,0.05411704]
[1745043921107,4.82872821,138.26,138.22,598.34]
[1745043921306,4.82872821,138.25,138.22,598.34]
[1745043921607,4.82872821,138.24,138.22,598.34]
[1745043921908,4.82872821,138.23,138.22,25.44]
[1745043922107,4.82872821,138.23,138.15,574.6943]
[1745043922408,6.5138,138.2,138.16,25.44]
[1745043922607,4.82872821,138.19,138.18,0.05077155]
[1745043922807,11.395653,138.19,138.18,0.05077155]
[1745043924604,12.01217061,138.19,138.18,0.05077155]
[1745043927410,5.49827061,138.19,138.18,0.05077155]
[1745043928007,0.05302479,138.19,138.18,0.05077155]
[1745043928310,5.4909464,138.19,138.18,0.05077155]
[1745043928810,0.05302479,138.19,138.18,0.05077155]
[1745043933516,10.0,138.25,138.18,0.05077155]
[1745043933716,5.43344323,138.24,138.19,25.44]
[1745043934015,5.43344323,138.23,138.19,25.44]
[1745043934219,5.43344323,138.22,138.19,25.44]
[1745043934515,5.43344323,138.21,138.19,25.44]
[1745043934715,0.05031336,138.22,138.19,25.44]
[1745043934917,5.43427406,138.21,138.19,25.44]
[1745043935116,0.05031336,138.22,138.19,25.44]
[1745043935317,5.43406918,138.21,138.19,25.44]
[1745043935518,0.05031336,138.22,138.19,25.44]
[1745043935714,5.43406918,138.21,138.19,25.44]
[1745043935915,0.05031336,138.22,138.19,25.44]
[1745043936115,5.43406918,138.21,138.19,25.44]
[1745043936416,0.05031336,138.22,138.19,25.44]
[1745043936712,5.43384818,138.21,138.19,25.44]
[1745043936919,0.05031336,138.22,138.19,25.44]
[1745043937116,5.43384818,138.21,138.19,25.44]
[1745043937317,0.05031336,138.22,138.19,25.44]
[1745043937522,5.43366224,138.21,138.19,25.44]
[1745043937818,0.05031336,138.22,138.19,25.44]
[1745043938020,5.43366224,138.21,138.19,25.44]
[1745043938220,0.05031336,138.22,138.19,25.44]
[1745043938422,5.43354625,138.21,138.19,25.44]
[1745043938720,0.05031336,138.22,138.19,25.44]
[1745043938921,5.43354625,138.21,138.19,25.44]
[1745043939122,0.05031336,138.22,138.19,25.44]
[1745043939420,5.43339943,138.21,138.19,25.44]
[1745043939621,0.05031336,138.22,138.19,25.44]
[1745043939822,5.43339943,138.21,138.19,25.44]
[1745043940023,0.05031336,138.22,138.19,25.44]
[1745043940223,5.43339943,138.21,138.19,25.44]
[1745043940423,0.05031336,138.22,138.19,25.44]
[1745043940624,5.43331326,138.21,138.19,25.44]
[1745043940824,0.05031336,138.22,138.19,25.44]
[1745043941026,5.43331326,138.21,138.19,25.44]
[1745043941225,0.05031336,138.22,138.19,25.44]
[1745043941426,5.43324086,138.21,138.19,25.44]
[1745043941626,0.05031336,138.22,138.19,25.44]
[1745043943631,5.43357588,138.21,138.19,25.44]
[1745043943833,0.05031336,138.22,138.19,25.44]
[1745043944034,5.43358235,138.21,138.19,25.44]
[1745043944228,0.05031336,138.22,138.19,25.44]
[1745043945734,5.43371276,138.21,138.19,25.44]
[1745043945934,0.05031336,138.22,138.19,25.44]
[1745043946231,5.43385333,138.21,138.19,25.44]
[1745043946432,0.05031336,138.22,138.19,25.44]
[1745043947034,5.43386907,138.21,138.19,25.44]
[1745043947235,0.05031336,138.22,138.19,25.44]
[1745043947429,5.43399777,138.21,138.19,25.44]
[1745043947734,0.05031336,138.22,138.19,25.44]
[1745043948032,5.43396699,138.21,138.19,25.44]
[1745043948233,0.05031336,138.22,138.19,25.44]
[1745043948437,5.43412673,138.21,138.19,25.44]
[1745043948636,0.05031336,138.22,138.19,25.44]
[1745043948936,5.43412673,138.21,138.19,25.44]
[1745043949136,0.05031336,138.22,138.19,25.44]
[1745043949437,5.43488973,138.21,138.19,25.44]
[1745043949635,0.05031336,138.22,138.19,25.44]
[1745043949835,5.43488973,138.21,138.19,25.44]
[1745043950137,0.05031336,138.22,138.19,25.44]
[1745043950338,5.43921941,138.21,138.19,25.44]
[1745043950540,0.05031336,138.22,138.19,25.44]
[1745043950837,5.43921941,138.21,138.19,25.44]
[1745043951038,0.05031336,138.22,138.19,25.44]
[1745043951337,5.43921941,138.21,138.19,25.44]
[1745043951538,0.05031336,138.22,138.19,25.44]
[1745043951737,5.4401055,138.21,138.19,25.44]
[1745043951934,0.05031336,138.22,138.19,25.44]
[1745043952136,5.4401055,138.21,138.19,25.44]
[1745043952336,0.05031336,138.22,138.19,25.44]
[1745043952540,5.44101679,138.21,138.19,25.44]
[1745043952738,0.05031336,138.22,138.19,25.44]
[1745043952938,5.44101679,138.21,138.19,25.44]
[1745043953139,0.05031336,138.22,138.19,25.44]
[1745043953339,5.44204887,138.21,138.19,25.44]
[1745043953541,0.05031336,138.22,138.19,25.44]
[1745043953739,5.44204796,138.21,138.19,25.44]
[1745043954039,0.05031336,138.22,138.19,25.44]
[1745043954338,5.44204796,138.21,138.19,25.44]
[1745043954538,0.05031336,138.22,138.19,25.44]
[1745043954738,5.44334993,138.21,138.19,25.44]
[1745043954940,0.05031336,138.22,138.19,25.44]
[1745043955142,5.44334993,138.21,138.19,25.44]
[1745043955339,0.05031336,138.22,138.19,25.44]
[1745043955539,5.44495314,138.21,138.19,25.44]
[1745043955740,0.05031336,138.22,138.19,25.44]
[1745043955941,5.44496902,138.21,138.19,25.44]
[1745043956141,0.05031336,138.22,138.19,25.44]
[1745043956339,5.44628177,138.21,138.19,25.44]
[1745043956637,0.05031336,138.22,138.19,25.44]
[1745043956838,5.44629671,138.21,138.19,25.44]
[1745043957038,0.05031336,138.22,138.19,25.44]
[1745043957238,5.44629671,138.21,138.19,25.44]
[1745043957435,5.44629671,138.2,138.19,25.44]
[1745043958845,0.05031336,138.22,138.19,25.44]
[1745043973562,5.00256442,138.21,138.19,25.44]
[1745043973862,0.05031336,138.22,138.19,25.44]
[1745043974062,5.00256314,138.21,138.19,25.44]
[1745043974262,0.05031336,138.22,138.19,25.44]
[1745043974464,5.00257857,138.21,138.19,25.44]
[1745043974662,0.05031336,138.22,138.19,25.44]
[1745043974964,9.40490515,138.21,138.19,25.44]
[1745043975157,4.40230013,138.21,138.19,25.44]
[1745043975763,0.05031336,138.22,138.19,25.44]
[1745043975965,5.00304211,138.21,138.19,25.44]
[1745043976160,0.05031336,138.22,138.19,25.44]
[1745043976460,5.00353181,138.21,138.19,25.44]
[1745043976661,0.05031336,138.22,138.19,25.44]
[1745043976862,5.00354462,138.21,138.19,25.44]
[1745043977061,0.05031336,138.22,138.19,25.44]
[1745043977259,9.40781237,138.21,138.19,25.44]
[1745043977458,0.05031336,138.22,138.19,25.44]
[1745043977665,5.0041699,138.21,138.19,25.44]
[1745043977865,0.05031336,138.22,138.19,25.44]
[1745043978067,5.00417133,138.21,138.19,25.44]
[1745043978265,0.05031336,138.22,138.19,25.44]
[1745043978565,5.0047965,138.21,138.19,25.44]
[1745043978762,4.40425837,138.21,138.19,25.44]
[1745043979160,9.4083152,138.2,138.12,25.44]
[1745043979367,5.00405683,138.19,138.12,25.44]
[1745043979566,6.5157,138.16,138.12,25.44]
[1745043979966,4.99835809,138.15,138.12,25.44]
[1745043980167,6.5157,138.16,138.12,25.44]
[1745043980367,9.44751248,138.15,138.12,25.4873894]
[1745043980568,5.68756645,138.14,138.12,25.4873894]
[1745043980869,5.68756645,138.13,138.12,25.4873894]
[1745043982474,5.72728555,138.13,138.12,25.4873894]
[1745043983271,6.5163,138.14,138.12,25.4873894]
[1745043983478,5.72498721,138.13,138.12,25.4873894]
[1745043984176,5.72469656,138.13,138.12,25.4873894]
[1745043984471,6.5648967,138.15,138.12,25.4873894]
[1745043984672,5.72284516,138.14,138.12,25.4873894]
[1745043984872,6.5648967,138.15,138.12,25.4873894]
[1745043985066,5.72280591,138.14,138.12,25.4873894]
[1745043985271,6.5648967,138.15,138.12,25.4873894]
[1745043985474,5.72088473,138.14,138.12,25.4873894]
[1745043985673,6.5648967,138.15,138.12,25.4873894]
[1745043985869,0.0489967,138.15,138.12,25.4873894]
[1745043986070,10.0,138.22,138.12,25.4873894]
[1745043986374,6.5138,138.2,138.12,25.44]
[1745043986575,10.10793141,138.19,138.12,25.44]
[1745043986774,5.72199149,138.18,138.12,25.44]
[1745043986978,6.5138,138.2,138.12,25.44]
[1745043987177,0.05417717,138.17,138.14,0.05401561]
[1745043987377,0.05417717,138.17,138.15,25.44]
[1745043987577,0.05417717,138.17,138.15,27.3544]
[1745043990474,39.3723,138.25,138.15,27.3544]
[1745043990679,5.5875366,138.24,138.15,27.3544]
[1745043990881,6.5142,138.19,138.15,27.3544]
[1745043991180,5.5875366,138.18,138.15,27.3544]
[1745043991382,6.5142,138.19,138.15,27.3544]
[1745043991583,5.58731008,138.18,138.15,27.3544]
[1745043991783,6.5142,138.19,138.16,0.05306993]
[1745043991981,5.58730911,138.18,138.16,0.05306993]
[1745043992181,6.5142,138.19,138.16,0.05306993]
[1745043992383,5.58697079,138.18,138.16,0.05306993]
[1745043992682,6.5142,138.19,138.16,0.05306993]
[1745043992983,5.58718179,138.18,138.16,0.05306993]
[1745043993181,6.5142,138.19,138.16,0.05306993]
[1745043993384,12.10125925,138.18,138.16,0.05306993]
[1745043993582,5.58697512,138.17,138.15,27.3544]
[1745043993782,6.5144,138.18,138.16,0.04943003]
[1745043994081,5.58697461,138.17,138.16,0.04943003]
[1745043995082,5.58624811,138.17,138.16,0.04943003]
[1745043996780,5.5859516,138.17,138.16,0.04943003]
[1745043997883,11.9498,138.25,138.16,0.04943003]
[1745043998091,5.58678467,138.24,138.16,1.9366]
[1745043998280,5.58678467,138.23,138.19,0.04727003]
[1745043998481,5.58678467,138.22,138.2,25.44]
[1745043998685,5.58690099,138.21,138.2,25.44]
[1745044001586,0.05310689,138.22,138.2,25.44]
[1745044001888,5.45573951,138.21,138.2,25.44]
[1745044002189,5.45546965,138.21,138.2,25.44]
[1745044003990,5.45623052,138.21,138.2,25.44]
[1745044005596,5.45566524,138.21,138.2,25.44]
[1745044007392,9.84040412,138.21,138.19,0.04727003]
[1745044007696,11.96814711,138.2,138.19,0.04727003]
[1745044008093,16.35288599,138.2,138.19,0.04727003]
[1745044009400,10.89813888,138.2,138.19,0.04727003]
[1745044009593,16.35262121,138.2,138.19,0.04727003]
[1745044011397,16.35317054,138.2,138.19,0.04727003]
[1745044019500,9.83977054,138.2,138.19,0.04727003]
[1745044020299,9.52240996,138.2,138.19,0.04727003]
[1745044022108,9.5238736,138.2,138.19,0.04727003]
[1745044023802,4.38473888,138.2,138.19,0.04727003]
[1745044024107,9.52429224,138.2,138.19,0.04727003]
[1745044025010,4.38473888,138.2,138.19,0.04727003]
[1745044025508,0.05310689,138.22,138.19,0.04727003]
[1745044025708,5.14096175,138.21,138.19,0.04727003]
[1745044026009,4.39277936,138.21,138.19,0.04727003]
[1745044026723,0.05310689,138.22,138.19,0.04727003]
[1745044026908,5.14161724,138.21,138.19,0.04727003]
[1745044027121,0.05310689,138.22,138.19,0.04727003]
[1745044027340,5.14158711,138.21,138.19,0.04727003]
[1745044027511,0.05310689,138.22,138.19,0.04727003]
[1745044027813,5.1424175,138.21,138.19,0.04727003]
[1745044028011,4.3940126,138.21,138.19,0.04727003]
[1745044028310,0.05310689,138.22,138.19,0.04727003]
[1745044028510,5.1433525,138.21,138.19,0.04727003]
[1745044028810,0.05310689,138.22,138.19,0.04727003]
[1745044029010,5.14351682,138.21,138.19,0.04727003]
[1745044029210,0.05310689,138.22,138.19,0.04727003]
[1745044029412,5.14351687,138.21,138.19,0.04727003]
[1745044029611,0.05310689,138.22,138.19,0.04727003]
[1745044029814,5.1447215,138.21,138.19,0.04727003]
[1745044030015,4.3959813,138.21,138.19,0.04727003]
[1745044030310,0.05310689,138.22,138.19,0.04727003]
[1745044030609,5.14612637,138.21,138.19,0.04727003]
[1745044030811,0.05310689,138.22,138.19,0.04727003]
[1745044031013,9.54335884,138.21,138.19,0.04727003]
[1745044031211,4.39720458,138.21,138.19,0.04727003]
[1745044031411,0.05310689,138.22,138.19,0.04727003]
[1745044031611,5.1460452,138.21,138.19,0.04727003]
[1745044031808,0.05310689,138.22,138.19,0.04727003]
[1745044032009,5.14601386,138.21,138.19,0.04727003]
[1745044032214,6.56580689,138.22,138.19,0.04727003]
[1745044032408,5.14585372,138.21,138.19,0.04727003]
[1745044032612,6.56580689,138.22,138.19,0.04727003]
[1745044032814,5.14577521,138.21,138.19,0.04727003]
[1745044033014,5.14577521,138.2,138.19,0.04727003]
[1745044033208,9.54261997,138.2,138.19,0.04727003]
[1745044034317,16.05601997,138.2,138.19,0.04727003]
[1745044035816,9.54261997,138.2,138.13,5.9065]
[1745044036114,9.54261997,138.19,138.14,25.44]
[1745044036314,5.14577521,138.18,138.14,25.44]
[1745044036514,16.05791997,138.17,138.14,25.44]
[1745044036713,10.91214476,138.17,138.14,25.44]
[1745044036914,4.44282527,138.17,138.14,25.48592549]
[1745044037416,0.04598051,138.17,138.14,25.48592549]
[1745044037716,6.5156,138.16,138.14,25.48592549]
[1745044038117,0.04598051,138.17,138.14,25.48592549]
[1745044038316,6.5158,138.15,138.14,25.48592549]
[1745044038816,11.65774593,138.15,138.14,25.48592549]
[1745044039712,16.05069492,138.15,138.14,25.48592549]
[1745044041418,16.04787021,138.15,138.14,25.48592549]
[1745044043822,16.04673053,138.15,138.14,25.48592549]
[1745044044921,10.90874899,138.15,138.14,25.48592549]
[1745044045123,6.5158,138.15,138.14,25.48592549]
[1745044045320,11.65261603,138.15,138.14,25.48592549]
[1745044045622,6.5158,138.15,138.14,25.48592549]
[1745044045822,16.04068556,138.15,138.14,25.48592549]
[1745044046022,6.5167,138.13,138.12,573.0]
[1745044046324,6.5167,138.13,138.12,598.44]
[1745044048922,6.5167,138.13,138.12,573.0]
[1745044049115,6.5167,138.13,138.12,598.44]
[1745044049623,6.5167,138.13,138.12,573.0]
[1745044050124,6.5167,138.13,138.12,598.44]
[1745044054722,6.5167,138.13,138.12,588.5743]
[1745044054929,16.03460663,138.13,138.12,588.5743]
[1745044056829,16.03460663,138.13,138.12,563.1343]
[1745044057023,16.03460663,138.13,138.12,588.5743]
[1745044057426,6.5167,138.13,138.12,588.5743]
[1745044057626,11.64400303,138.13,138.12,588.5743]
[1745044057931,6.5167,138.13,138.12,588.5743]
[1745044058123,11.64401483,138.13,138.12,588.5743]
[1745044058428,6.5167,138.13,138.12,588.5743]
[1745044059030,6.5172,138.12,138.11,0.05503435]
[1745044059231,6.5172,138.12,138.11,25.49503435]
[1745044068936,6.5169,138.13,138.11,25.49503435]
[1745044069539,6.5172,138.12,138.11,25.49503435]
[1745044071043,6.5169,138.13,138.11,25.49503435]
[1745044071844,0.0556238,138.14,138.11,25.49503435]
[1745044072545,6.5720238,138.14,138.11,25.49503435]
[1745044075348,6.5167,138.13,138.11,25.49503435]
[1745044075548,0.0556238,138.14,138.11,25.49503435]
[1745044077247,6.5172,138.12,138.11,25.49503435]
[1745044083458,6.517,138.13,138.11,25.49503435]
[1745044083754,0.0556238,138.14,138.11,25.49503435]
[1745044084959,6.5172,138.12,138.11,25.49503435]
[1745044090566,10.91042322,138.12,138.11,25.49503435]
[1745044090767,16.00618244,138.12,138.11,25.49503435]
[1745044090964,16.00617901,138.12,138.11,25.49503435]
[1745044094067,4.39322322,138.12,138.11,25.49503435]
[1745044094261,0.0556238,138.14,138.11,25.49503435]
[1745044094461,5.09508218,138.13,138.11,25.49503435]
[1745044094766,6.5719238,138.14,138.11,25.49503435]
[1745044094969,9.48905105,138.13,138.11,25.49503435]
[1745044095269,4.39317659,138.13,138.11,25.49503435]
[1745044095569,6.5719238,138.14,138.11,25.49503435]
[1745044095769,9.49077309,138.13,138.11,25.49503435]
[1745044095967,4.39400112,138.13,138.11,25.49503435]
[1745044096170,6.5719238,138.14,138.11,25.49503435]
[1745044096369,5.09682248,138.13,138.11,25.49503435]
[1745044096569,6.5168,138.13,138.11,25.49503435]
[1745044105180,6.5720238,138.14,138.11,25.49503435]
[1745044106280,4.40154745,138.13,138.11,25.49503435]
[1745044106677,6.5720238,138.14,138.11,25.49503435]
[1745044109278,6.5168,138.13,138.11,25.49503435]
[1745044109483,0.0556238,138.14,138.11,25.49503435]
[1745044109682,4.39976444,138.12,138.11,25.49503435]
[1745044110477,10.91696444,138.12,138.11,25.49503435]
[1745044110683,15.88547467,138.12,138.11,25.49503435]
[1745044111081,15.88558382,138.12,138.11,25.49503435]
[1745044114881,15.8861431,138.12,138.11,25.49503435]
[1745044116683,15.88677575,138.12,138.11,25.49503435]
[1745044118385,15.88514909,138.12,138.11,25.49503435]
[1745044120185,6.5177,138.11,138.07,1.8504]
[1745044120380,6.5177,138.11,138.08,25.44]
[1745044120577,4.39993703,138.1,138.08,25.44]
[1745044120984,4.39993703,138.1,138.07,1.8504]
[1745044121184,4.39993703,138.1,138.08,25.44]
[1745044121384,0.05517761,138.1,138.08,25.44]
[1745044122185,0.05517761,138.1,138.07,1.8504]
[1745044122386,0.05517761,138.1,138.08,25.44]
[1745044123088,0.05517761,138.1,138.09,25.44]
[1745044123489,4.45216546,138.1,138.09,25.44]
[1745044124688,4.45216546,138.1,138.07,1.8504]
[1745044125190,4.45216546,138.1,138.08,25.44]
[1745044125490,6.57327761,138.1,138.08,25.44]
[1745044125690,6.57327761,138.1,138.07,1.8504]
[1745044126093,6.57327761,138.1,138.08,25.44]
[1745044129989,0.05517761,138.1,138.08,25.44]
[1745044130690,6.57377761,138.1,138.08,25.44]
[1745044132687,0.05517761,138.1,138.08,25.44]
[1745044135590,6.57337761,138.1,138.08,25.44]
[1745044136997,6.5186,138.09,138.08,25.44]
[1745044143201,10.91672095,138.09,138.08,25.44]
[1745044143600,15.88244483,138.09,138.08,25.44]
[1745044146899,15.88149848,138.09,138.08,25.44]
[1745044152909,6.52,138.06,138.05,573.22]
[1745044153109,10.91812095,138.06,138.05,598.66]
[1745044153507,15.88088373,138.06,138.05,598.66]
[1745044153708,10.91812095,138.06,138.05,598.66]
[1745044154112,6.52,138.06,138.05,598.66]
[1745044156517,10.91351014,138.06,138.05,598.66]
[1745044158714,10.91351014,138.06,138.05,25.44]
[1745044161716,6.52,138.06,138.05,25.44]
[1745044172324,10.91204772,138.06,138.05,25.44]
[1745044175530,6.52,138.06,138.05,25.44]
[1745044180530,10.91655157,138.06,138.05,25.44]
[1745044181229,6.52,138.06,138.05,25.44]
[1745044182225,0.04678415,138.07,138.05,25.44]
[1745044182432,10.0,138.12,138.05,25.44]
[1745044182726,4.96712895,138.11,138.05,31.2031]
[1745044182931,9.36611022,138.1,138.05,31.2031]
[1745044183229,9.36611022,138.09,138.05,31.2031]
[1745044183431,4.39898127,138.09,138.05,31.2031]
[1745044183633,0.05019693,138.08,138.06,0.04729245]
[1745044184931,6.56969693,138.08,138.06,0.04729245]
[1745044187533,6.5196,138.07,138.06,0.04729245]
[1745044190334,6.56949693,138.08,138.06,0.04729245]
[1745044191235,0.05019693,138.08,138.06,0.04729245]
[1745044191435,6.5188,138.09,138.06,0.04729245]
[1745044192534,6.5714565,138.09,138.06,0.04729245]
[1745044192936,6.5714565,138.09,138.06,1.37724182]
[1745044193535,13.8921,138.17,138.06,1.37724182]
[1745044193836,4.91660665,138.16,138.06,1.32994937]
[1745044194035,4.91660665,138.15,138.06,1.32994937]
[1745044194238,4.91660665,138.14,138.06,1.44864551]
[1745044194436,4.38482487,138.14,138.07,1.32979967]
[1745044194633,6.517,138.13,138.09,0.05220619]
[1745044194832,6.517,138.13,138.09,1.38200586]
[1745044195531,10.0,138.2,138.09,1.38200586]
[1745044195733,0.04837287,138.12,138.1,6.0244]
[1745044195933,10.0,138.2,138.13,0.05048681]
[1745044196134,4.91143394,138.19,138.14,25.44]
[1745044196331,4.96190289,138.18,138.15,0.05481145]
[1745044196530,4.91143394,138.17,138.15,0.05481145]
[1745044196729,4.37757299,138.17,138.15,0.05481145]
[1745044197137,4.37757299,138.16,138.15,0.05481145]
[1745044197640,6.5148,138.17,138.15,0.05481145]
[1745044199040,6.5153,138.16,138.15,0.05481145]
[1745044202241,10.88182847,138.16,138.15,0.05481145]
[1745044203144,15.77758439,138.16,138.15,0.05481145]
[1745044203945,15.77758439,138.16,138.15,1.145e-05]
[1745044204245,9.26228439,138.16,138.07,1.44854059]
[1745044204446,8.70994816,138.15,138.08,25.42]
[1745044204644,3.8153,138.15,138.08,25.42]
[1745044204843,6.5185,138.1,138.08,25.42]
[1745044205444,6.57192456,138.1,138.08,25.46685422]
[1745044206447,6.5186,138.09,138.08,25.46685422]
[1745044211850,6.5186,138.09,138.08,5.422e-05]
[1745044212445,10.88306516,138.09,138.08,5.422e-05]
[1745044212748,9.25758127,138.09,138.03,25.42]
[1745044212949,23.16708127,138.08,138.03,25.42]
[1745044213249,4.89272649,138.07,138.03,25.42]
[1745044213449,13.9095,138.08,138.03,25.42]
[1745044213649,9.25540543,138.07,138.03,25.42]
[1745044213846,6.521,138.04,137.97,578.968]
[1745044214051,4.36317098,138.06,137.98,25.42]